fUSD/lending_fUSD_20251003
["ID","MTS","AMOUNT","RATE_DAILY","PERIOD"]
[388926076,1759510244105,-174.89463508,0.00019077,2]
[388926077,1759510244115,-454.82411453,0.00019077,2]
[388926078,1759510244125,-164.95400325,0.00019077,2]
[388926079,1759510244135,-204.42956744,0.00019077,2]
[388926080,1759510244144,-454.82411449,0.00019077,2]
[388926081,1759510244157,-174.89463505,0.00019077,2]
[388926082,1759510244167,-454.82411449,0.00019077,2]
[388926083,1759510244177,-454.82411449,0.00019077,2]
[388926084,1759510244187,-174.89463505,0.00019077,2]
[388926085,1759510244197,-454.82411449,0.00019077,2]
[388926086,1759510244206,-454.82411449,0.00019078,2]
[388926087,1759510244216,-174.89463505,0.00019078,2]
[388926088,1759510244227,-454.82411449,0.00019078,2]
[388926089,1759510244236,-454.82411449,0.00019078,2]
[388926090,1759510244245,-174.89463505,0.00019078,2]
[388926091,1759510244255,-454.82411449,0.00019078,2]
[388926092,1759510244265,-174.89463505,0.00019078,2]
[388926093,1759510244275,-454.82411449,0.00019078,2]
[388926094,1759510244285,-204.42956744,0.00019078,2]
[388926095,1759510244294,-246.75681768,0.00019078,2]
[388926096,1759510244304,-6053.28842798,0.00019088,2]
[388926097,1759510244313,-6053.28842798,0.00019088,2]
[388926098,1759510244323,-511.64400002,0.00019097,2]
[388926099,1759510244333,-2500.0,0.000191,3]
[388926100,1759510244343,-151.0,0.00019149,2]
[388926101,1759510244353,-350.98517,0.00019149,2]
[388926102,1759510244365,-444469.44805995,0.00019151,2]
[388926103,1759510244382,-3198.36,0.00019151,2]
[388926107,1759510245820,-1978.44,0.00019151,2]
[388926108,1759510245916,-3090.273,0.00019151,2]
[388926109,1759510245947,-0.009,0.00019151,2]
[388926110,1759510246005,-886005.60818295,0.00019151,2]
[388926111,1759510246039,-92474.60703275,0.00019151,2]
[388926112,1759510246052,-95100.37617466,0.00019151,2]
[388926113,1759510246064,-49945.8925,0.00019151,2]
[388926114,1759510246075,-7370.7144,0.00019151,2]
[388926115,1759510246086,-8695.51999689,0.00019151,2]
[388926116,1759510246224,-6384.2133351,0.00019151,2]
[388926127,1759510257870,2803056.56652292,0.000256,120]
[388926128,1759510273213,18044.67080522,0.00025,120]
[388926129,1759510282715,9895.59455326,0.00024,120]
[388926130,1759510282740,190104.40544674,0.00024,120]
[388926131,1759510299524,9895.59455326,0.00024,120]
[388926132,1759510309553,55000.0,0.00022,120]
[388926133,1759510309577,1000.0,0.00022,120]
[388926134,1759510309605,300123.0,0.00022,120]
[388926135,1759510309627,245123.0,0.00022,120]
[388926136,1759510322459,55000.0,0.00022,120]
[388926137,1759510334722,500.0,0.00014,30]
[388926138,1759510334791,1500.0,0.00014,30]
[388926139,1759510335651,19836.0,0.00021,120]
[388926140,1759510335688,2700.0,0.00014,30]
[388926141,1759510335822,1500.0,0.00014,30]
[388926142,1759510335891,2700.0,0.00014,30]
[388926143,1759510335936,219.57939589,0.00014,30]
[388926144,1759510335994,168.82384234,0.00014,30]
[388926145,1759510336056,1500.0,0.00014,30]
[388926146,1759510336115,2700.0,0.00014,30]
[388926147,1759510336805,1500.0,0.00014,30]
[388926148,1759510336851,2700.0,0.00014,30]
[388926149,1759510337098,398.25360298,0.00014,30]
[388926150,1759510337126,1101.74639702,0.00014,30]
[388926151,1759510337251,500.0,0.00014,30]
[388926152,1759510337329,2700.0,0.00014,30]
[388926153,1759510337424,1500.0,0.00014,30]
[388926154,1759510337483,156.29,0.00014,30]
[388926155,1759510337507,343.71,0.00014,30]
[388926156,1759510337601,500.0,0.00014,30]
[388926157,1759510337693,1500.0,0.00014,30]
[388926158,1759510337736,500.0,0.00014,30]
[388926159,1759510337792,2700.0,0.00014,30]
[388926160,1759510337839,500.0,0.00014,30]
[388926161,1759510337889,1500.0,0.00014,30]
[388926162,1759510337934,500.0,0.00014,30]
[388926163,1759510337976,2700.0,0.00014,30]
[388926164,1759510338117,500.0,0.00014,30]
[388926165,1759510338375,500.0,0.00014,30]
[388926166,1759510338415,2700.0,0.00014,30]
[388926167,1759510338455,1500.0,0.00014,30]
[388926168,1759510338495,500.0,0.00014,30]
[388926169,1759510338627,500.0,0.00014,30]
[388926170,1759510338690,2700.0,0.00014,30]
[388926171,1759510338754,1500.0,0.00014,30]
[388926172,1759510338815,500.0,0.00012,30]
[388926173,1759510338878,2700.0,0.00014,30]
[388926174,1759510338931,500.0,0.00014,30]
[388926175,1759510338971,1500.0,0.00014,30]
[388926176,1759510339019,166.47344729,0.00012,30]
[388926177,1759510339043,333.52655271,0.00012,30]
[388926178,1759510339130,2700.0,0.00014,30]
[388926179,1759510339177,1500.0,0.00014,30]
[388926180,1759510339228,826.37897904,0.00012,30]
[388926181,1759510339273,500.0,0.00014,30]
[388926182,1759510339468,2700.0,0.00014,30]
[388926183,1759510339530,1500.0,0.00014,30]
[388926184,1759510339580,500.0,0.00014,30]
[388926185,1759510339653,2700.0,0.00014,30]
[388926186,1759510339724,500.0,0.00014,30]
[388926187,1759510339767,1500.0,0.00014,30]
[388926188,1759510339981,576.07811604,0.00014,30]
[388926189,1759510340018,2700.0,0.00014,30]
[388926190,1759510340147,500.0,0.00014,30]
[388926191,1759510340251,1500.0,0.00012,30]
[388926192,1759510340780,2700.0,0.00014,30]
[388926193,1759510340827,500.0,0.00014,30]
[388926194,1759510340899,271.0,0.00013999,2]
[388926195,1759510340962,1500.0,0.00012,30]
[388926196,1759510341065,163.97879068,0.00014,30]
[388926197,1759510341095,336.02120932,0.00014,30]
[388926198,1759510341159,2700.0,0.00012,30]
[388926199,1759510341244,1500.0,0.00012,30]
[388926200,1759510341496,500.0,0.00014,30]
[388926201,1759510341573,2700.0,0.00012,30]
[388926202,1759510341623,1500.0,0.00012,30]
[388926203,1759510341706,500.0,0.00014,30]
[388926204,1759510341777,500.0,0.00014,30]
[388926205,1759510341833,2700.0,0.00012,30]
[388926206,1759510341916,1500.0,0.00012,30]
[388926207,1759510341974,700.0,0.00014,30]
[388926208,1759510342059,500.0,0.00014,30]
[388926209,1759510342125,164.33409859,0.00014,30]
[388926210,1759510342181,500.0,0.00012,30]
[388926211,1759510342267,2700.0,0.00012,30]
[388926212,1759510342318,1500.0,0.00012,30]
[388926213,1759510342374,700.0,0.00014,30]
[388926214,1759510342444,500.0,0.00014,30]
[388926215,1759510342651,1400.0,0.00014,30]
[388926216,1759510342695,500.0,0.00012,30]
[388926217,1759510342759,2700.0,0.00012,30]
[388926218,1759510342807,1500.0,0.00012,30]
[388926219,1759510342865,700.0,0.00014,30]
[388926220,1759510342933,500.0,0.00014,30]
[388926221,1759510343950,1400.0,0.00014,30]
[388926222,1759510343992,500.0,0.00012,30]
[388926223,1759510344043,2700.0,0.00012,30]
[388926224,1759510344091,1500.0,0.00012,30]
[388926225,1759510344160,407.20831362,0.00011,30]
[388926226,1759510344200,700.0,0.00014,30]
[388926227,1759510344240,500.0,0.00011,30]
[388926228,1759510344285,500.0,0.00014,30]
[388926229,1759510344330,500.0,0.00014,30]
[388926230,1759510344409,500.0,0.00012,30]
[388926231,1759510344456,500.0,0.00011,30]
[388926232,1759510344538,1400.0,0.00014,30]
[388926233,1759510344580,1500.0,0.00012,30]
[388926234,1759510344620,500.0,0.00011,30]
[388926235,1759510344668,500.0,0.00014,30]
[388926236,1759510344708,500.0,0.00011,30]
[388926237,1759510344755,500.0,0.00012,30]
[388926238,1759510344805,500.0,0.00012,30]
[388926239,1759510344848,700.0,0.00014,30]
[388926240,1759510344898,500.0,0.0001,10]
[388926241,1759510345095,500.0,0.0001,10]
[388926242,1759510345187,1400.0,0.00014,30]
[388926243,1759510345272,500.0,0.00011,30]
[388926244,1759510345312,500.0,0.00014,30]
[388926245,1759510345361,2700.0,0.00012,30]
[388926246,1759510345546,1500.0,0.00012,30]
[388926247,1759510345589,700.0,0.00014,30]
[388926248,1759510346317,500.0,0.00012,30]
[388926249,1759510346388,500.0,0.00011,30]
[388926250,1759510346433,500.0,0.00014,30]
[388926251,1759510346880,2700.0,0.00012,30]
[388926252,1759510346949,1500.0,0.00012,30]
[388926253,1759510346995,700.0,0.00014,30]
[388926254,1759510347038,500.0,0.00012,30]
[388926255,1759510347101,500.0,0.00011,30]
[388926256,1759510347150,500.0,0.00014,30]
[388926257,1759510347191,1400.0,0.00014,30]
[388926258,1759510347226,2700.0,0.00012,30]
[388926259,1759510347262,1500.0,0.00012,30]
[388926260,1759510347300,500.0,0.00011,30]
[388926261,1759510347338,700.0,0.00014,30]
[388926262,1759510347385,500.0,0.00012,30]
[388926263,1759510347450,500.0,0.00011,30]
[388926264,1759510347612,2700.0,0.00012,30]
[388926265,1759510347655,500.0,0.00014,30]
[388926266,1759510347695,1500.0,0.00012,30]
[388926267,1759510347777,1400.0,0.00014,30]
[388926268,1759510347819,700.0,0.00014,30]
[388926269,1759510347860,500.0,0.00012,30]
[388926270,1759510347902,500.0,0.00011,30]
[388926271,1759510347961,500.0,0.00011,30]
[388926272,1759510348058,2700.0,0.00012,30]
[388926273,1759510348133,500.0,0.00014,30]
[388926274,1759510348170,1834.63150865,0.00012,30]
[388926275,1759510348214,268.0,0.00014,30]
[388926276,1759510348238,1132.0,0.00014,30]
[388926277,1759510348276,700.0,0.00014,30]
[388926278,1759510348338,500.0,0.00012,30]
[388926279,1759510348393,500.0,0.00011,30]
[388926280,1759510348449,2700.0,0.00012,30]
[388926281,1759510348498,500.0,0.00014,30]
[388926282,1759510348538,700.0,0.00014,30]
[388926283,1759510348580,1400.0,0.00014,30]
[388926284,1759510348621,500.0,0.00012,30]
[388926285,1759510348672,500.0,0.00011,30]
[388926286,1759510348823,1400.0,0.00014,30]
[388926287,1759510348858,2700.0,0.00012,30]
[388926288,1759510348897,500.0,0.00014,30]
[388926289,1759510348946,700.0,0.00014,30]
[388926290,1759510348989,500.0,0.00012,30]
[388926291,1759510349106,500.0,0.00011,30]
[388926292,1759510349162,500.0,0.00012,30]
[388926293,1759510349199,1400.0,0.00014,30]
[388926294,1759510349237,5305.22930668,0.00012,30]
[388926295,1759510349284,700.0,0.00014,30]
[388926296,1759510349413,500.0,0.00012,30]
[388926297,1759510349528,500.0,0.0001,10]
[388926298,1759510349695,1400.0,0.00014,30]
[388926299,1759510349740,500.0,0.00012,30]
[388926300,1759510349785,700.0,0.00012,30]
[388926301,1759510349833,760.35772087,0.00012,30]
[388926302,1759510349891,500.0,0.0001,10]
[388926303,1759510349943,500.0,0.00012,30]
[388926304,1759510349980,1400.0,0.00014,30]
[388926305,1759510350017,700.0,0.00012,30]
[388926306,1759510350078,500.0,0.00011,30]
[388926307,1759510350134,500.0,0.0001,10]
[388926308,1759510350493,1400.0,0.00014,30]
[388926309,1759510350532,500.0,0.00012,30]
[388926310,1759510350574,700.0,0.00012,30]
[388926311,1759510350615,805.37831996,0.0001,10]
[388926312,1759510350668,500.0,0.0001,10]
[388926313,1759510350722,1400.0,0.00014,30]
[388926314,1759510350764,700.0,0.00012,30]
[388926315,1759510350801,500.0,0.00012,30]
[388926316,1759510350849,500.0,0.00011,30]
[388926317,1759510351007,500.0,0.0001,10]
[388926318,1759510351049,1400.0,0.00012,30]
[388926319,1759510351090,700.0,0.00012,30]
[388926320,1759510351126,500.0,0.00012,30]
[388926321,1759510351176,500.0,0.00011,30]
[388926322,1759510351234,500.0,0.0001,10]
[388926323,1759510351303,700.0,0.00012,30]
[388926324,1759510351419,1400.0,0.00012,30]
[388926325,1759510351463,500.0,0.00012,30]
[388926326,1759510351543,500.0,0.00011,30]
[388926327,1759510351689,500.0,0.0001,10]
[388926328,1759510351727,700.0,0.00012,30]
[388926329,1759510351774,1400.0,0.00012,30]
[388926330,1759510351824,500.0,0.00012,30]
[388926331,1759510351860,500.0,0.0001,10]
[388926332,1759510351960,1400.0,0.00012,30]
[388926333,1759510351999,700.0,0.00012,30]
[388926334,1759510352034,500.0,0.0001,10]
[388926335,1759510352073,500.0,0.00012,30]
[388926336,1759510352118,500.0,0.0001,10]
[388926337,1759510352171,1400.0,0.00012,30]
[388926338,1759510352235,700.0,0.00012,30]
[388926339,1759510352284,500.0,0.0001,10]
[388926340,1759510352339,500.0,0.0001,10]
[388926341,1759510352433,500.0,0.00012,30]
[388926342,1759510352471,1400.0,0.00012,30]
[388926343,1759510352515,700.0,0.00012,30]
[388926344,1759510352637,874.38974762,0.0001,10]
[388926345,1759510352762,1400.0,0.00012,30]
[388926346,1759510352940,168.0,0.00012,30]
[388926347,1759510352966,532.0,0.00012,30]
[388926348,1759510353006,500.0,0.00012,30]
[388926349,1759510353240,1400.0,0.00012,30]
[388926350,1759510353361,500.0,0.00012,30]
[388926351,1759510353403,1200.0,0.00012,30]
[388926352,1759510353675,1400.0,0.00012,30]
[388926353,1759510353747,819.86101699,0.00012,30]
[388926354,1759510353832,1400.0,0.00012,30]
[388926355,1759510354444,1400.0,0.00012,30]
[388926356,1759510354625,1400.0,0.00012,30]
[388926357,1759510354821,1400.0,0.00012,30]
[388926358,1759510355027,19836.0,0.00021,120]
[388926359,1759510355149,2045.83378654,0.00012,30]
[388926360,1759510363768,500.0,0.00011999,2]
[388926361,1759510363819,15328.0,0.00021,120]
[388926362,1759510363850,4508.0,0.00021,120]
[388926363,1759510363906,500.0,0.00011999,2]
[388926364,1759510363990,500.0,0.00011999,2]
[388926365,1759510364038,500.0,0.00011999,2]
[388926366,1759510364094,219.91550648,0.00011999,2]
[388926367,1759510368127,5328.0,0.00021,120]
[388926368,1759510368148,14508.0,0.00021,120]
[388926369,1759510372562,6092.0,0.00021,120]
[388926370,1759510372590,10000.0,0.00021,120]
[388926371,1759510396313,3176.0,0.00020121,120]
[388926372,1759510404012,30000.0,0.0002,120]
[388926373,1759510411070,2000000.0,0.000196,120]
[388926374,1759510427854,176.12513366,0.00011999,2]
[388926375,1759510427894,500.0,0.00011999,2]
[388926376,1759510427939,500.0,0.00011999,2]
[388926377,1759510427982,500.0,0.00011999,2]
[388926378,1759510428035,224.72876842,0.00011999,2]
[388926379,1759510479276,954.31085,0.0001656,2]
[388926380,1759510513381,170.44,0.00014072,2]
[388926381,1759510518899,169.0,5.4e-07,2]
[388926383,1759510634317,726.69392424,0.0001,10]
[388926384,1759510634455,500.0,0.0001,10]
[388926385,1759510634799,500.0,9.56e-05,2]
[388926386,1759510637005,500.0,0.0001,10]
[388926387,1759510637377,500.0,0.0001,10]
[388926388,1759510637710,500.0,0.0001,10]
[388926389,1759510637777,500.0,0.0001,10]
[388926390,1759510638176,172.17853553,0.0001,10]
[388926391,1759510638228,500.0,0.0001,10]
[388926392,1759510638276,500.0,9.56e-05,2]
[388926393,1759510639296,500.0,0.0001,10]
[388926394,1759510639564,500.0,0.0001,10]
[388926395,1759510639673,163.97879068,0.0001,10]
[388926396,1759510639704,336.02120932,0.0001,10]
[388926397,1759510639772,500.0,9.56e-05,2]
[388926398,1759510640293,500.0,0.0001,10]
[388926399,1759510640420,500.0,9.56e-05,2]
[388926400,1759510640824,5200.0,0.0001,10]
[388926401,1759510640921,5200.0,0.0001,10]
[388926402,1759510640968,500.0,9.56e-05,2]
[388926403,1759510641020,-172.56,0.00016608,2]
[388926404,1759510641084,5200.0,0.0001,10]
[388926405,1759510641144,500.0,9.56e-05,2]
[388926406,1759510641198,276.85497675,0.0001,10]
[388926407,1759510641334,500.35536094,0.0001,10]
[388926408,1759510642439,5200.0,0.0001,10]
[388926409,1759510642482,500.0,9.56e-05,2]
[388926410,1759510642576,5200.0,0.0001,10]
[388926411,1759510642633,500.0,9.56e-05,2]
[388926412,1759510642703,421.33006916,0.0001,10]
[388926413,1759510642740,5200.0,0.0001,10]
[388926414,1759510642777,537.71415014,9.56e-05,2]
[388926415,1759510642817,471.03368164,0.0001,10]
[388926416,1759510642866,698.90311039,0.0001,10]
[388926417,1759510642907,5200.0,0.0001,10]
[388926418,1759510643140,5200.0,0.0001,10]
[388926419,1759510643181,-224.99,0.00016608,2]
[388926420,1759510643242,5200.0,0.0001,10]
[388926421,1759510643567,997.44620578,0.0001,10]
[388926422,1759510643674,181.36858769,0.0001,10]
[388926423,1759510643733,5200.0,0.0001,10]
[388926424,1759510643925,500.0,0.0001,10]
[388926425,1759510643972,5200.0,0.0001,10]
[388926426,1759510644028,600.0,0.0001,10]
[388926427,1759510644197,500.0,0.0001,10]
[388926428,1759510644245,500.0,0.0001,10]
[388926429,1759510644285,5200.0,0.0001,10]
[388926430,1759510644323,666.79016359,0.0001,10]
[388926431,1759510644363,600.0,0.0001,10]
[388926432,1759510644547,-300.0,0.00016608,2]
[388926433,1759510644583,500.0,0.0001,10]
[388926434,1759510644625,500.0,0.0001,10]
[388926435,1759510644664,5200.0,0.0001,10]
[388926436,1759510644699,600.0,0.0001,10]
[388926437,1759510644761,500.0,0.0001,10]
[388926438,1759510644806,500.0,0.0001,10]
[388926439,1759510644847,5200.0,0.0001,10]
[388926440,1759510645032,600.0,0.0001,10]
[388926441,1759510645090,500.0,0.0001,10]
[388926442,1759510645125,500.0,0.0001,10]
[388926443,1759510645164,5200.0,0.0001,10]
[388926444,1759510645345,600.0,0.0001,10]
[388926445,1759510645428,500.0,9.56e-05,2]
[388926446,1759510645465,813.05117517,0.0001,10]
[388926447,1759510645513,500.0,0.0001,10]
[388926448,1759510645557,5200.0,9.56e-05,2]
[388926449,1759510645706,600.0,0.0001,10]
[388926450,1759510645779,500.0,9.56e-05,2]
[388926451,1759510645818,500.0,0.0001,10]
[388926452,1759510645863,5200.0,9.56e-05,2]
[388926453,1759510646047,600.0,0.0001,10]
[388926454,1759510646434,500.0,9.56e-05,2]
[388926455,1759510646472,500.0,0.0001,10]
[388926456,1759510646517,5200.0,9.56e-05,2]
[388926457,1759510646703,600.0,0.0001,10]
[388926458,1759510646747,525.06230897,9.56e-05,2]
[388926459,1759510646783,500.0,0.0001,10]
[388926460,1759510646831,5200.0,9.56e-05,2]
[388926461,1759510646896,600.0,0.0001,10]
[388926462,1759510646947,500.0,0.0001,10]
[388926463,1759510646983,5200.0,9.56e-05,2]
[388926464,1759510647051,500.0,0.0001,10]
[388926465,1759510647105,500.0,0.0001,10]
[388926466,1759510647156,988.92027001,0.0001,10]
[388926467,1759510647201,600.0,0.0001,10]
[388926468,1759510647264,500.0,0.0001,10]
[388926469,1759510647311,500.0,9.56e-05,2]
[388926470,1759510647361,5200.0,9.56e-05,2]
[388926471,1759510647570,600.0,0.0001,10]
[388926472,1759510647628,500.0,0.0001,10]
[388926473,1759510647657,-212.30878654,0.00016608,2]
[388926474,1759510647711,500.0,0.0001,10]
[388926475,1759510647759,5200.0,9.56e-05,2]
[388926476,1759510647849,1400.0,0.0001,10]
[388926477,1759510647910,600.0,0.0001,10]
[388926478,1759510647979,500.0,0.0001,10]
[388926479,1759510648031,500.0,0.0001,10]
[388926480,1759510648085,5200.0,9.56e-05,2]
[388926481,1759510648134,1400.0,0.0001,10]
[388926482,1759510648187,600.0,0.0001,10]
[388926483,1759510648315,500.0,0.0001,10]
[388926484,1759510648364,500.0,9.56e-05,2]
[388926485,1759510648439,5200.0,9.56e-05,2]
[388926486,1759510648488,1400.0,0.0001,10]
[388926487,1759510648541,600.0,9.56e-05,2]
[388926488,1759510648607,500.0,9.56e-05,2]
[388926489,1759510648660,999.22983203,9.56e-05,2]
[388926490,1759510648738,5200.0,9.56e-05,2]
[388926491,1759510648809,1400.0,0.0001,10]
[388926492,1759510648848,600.0,9.56e-05,2]
[388926493,1759510649070,5200.0,9.56e-05,2]
[388926494,1759510649179,600.0,9.56e-05,2]
[388926495,1759510649218,1400.0,0.0001,10]
[388926496,1759510650414,5200.0,9.56e-05,2]
[388926497,1759510650458,500.0,9.56e-05,2]
[388926498,1759510650527,1400.0,0.0001,10]
[388926499,1759510650599,600.0,9.56e-05,2]
[388926500,1759510650699,5200.0,9.56e-05,2]
[388926501,1759510650959,500.0,9.56e-05,2]
[388926502,1759510651003,1400.0,0.0001,10]
[388926503,1759510651067,600.0,9.56e-05,2]
[388926504,1759510651094,-275.87473648,0.00016608,2]
[388926505,1759510651135,7679.10165098,9.56e-05,2]
[388926506,1759510651192,500.0,9.56e-05,2]
[388926507,1759510651230,1400.0,0.0001,10]
[388926508,1759510651297,600.0,9.56e-05,2]
[388926509,1759510651356,1400.0,0.0001,10]
[388926510,1759510651395,500.0,9.56e-05,2]
[388926511,1759510651460,600.0,9.56e-05,2]
[388926512,1759510651512,1400.0,0.0001,10]
[388926513,1759510651554,500.0,9.56e-05,2]
[388926514,1759510651889,1400.0,0.0001,10]
[388926515,1759510651932,600.0,9.56e-05,2]
[388926516,1759510651980,500.0,9.56e-05,2]
[388926517,1759510652059,1400.0,0.0001,10]
[388926518,1759510652096,600.0,9.56e-05,2]
[388926519,1759510652145,500.0,9.56e-05,2]
[388926520,1759510652226,600.0,9.56e-05,2]
[388926521,1759510652262,1400.0,0.0001,10]
[388926522,1759510652302,500.0,9.56e-05,2]
[388926523,1759510652407,1400.0,0.0001,10]
[388926524,1759510652442,600.0,9.56e-05,2]
[388926525,1759510652485,500.0,9.56e-05,2]
[388926526,1759510652549,-300.0,0.00016608,2]
[388926527,1759510652640,1400.0,9.56e-05,2]
[388926528,1759510652675,600.0,9.56e-05,2]
[388926529,1759510652736,500.0,9.56e-05,2]
[388926530,1759510653019,1400.0,9.56e-05,2]
[388926531,1759510653056,744.98716241,9.56e-05,2]
[388926532,1759510653118,500.0,9.56e-05,2]
[388926533,1759510653662,1400.0,9.56e-05,2]
[388926534,1759510653718,870.13087651,9.56e-05,2]
[388926535,1759510653808,1400.0,9.56e-05,2]
[388926536,1759510653981,1400.0,9.56e-05,2]
[388926537,1759510654343,1400.0,9.56e-05,2]
[388926538,1759510654713,1400.0,9.56e-05,2]
[388926539,1759510655055,1400.0,9.56e-05,2]
[388926540,1759510655394,1400.0,9.56e-05,2]
[388926541,1759510655847,1400.0,9.56e-05,2]
[388926542,1759510656187,-193.54097639,0.00016608,2]
[388926543,1759510656236,1400.0,9.56e-05,2]
[388926544,1759510656573,1400.0,9.56e-05,2]
[388926545,1759510656915,1400.0,9.56e-05,2]
[388926546,1759510657283,2152.98789177,9.56e-05,2]
[388926547,1759510658345,-320.72550059,0.00016608,2]
[388926548,1759510658367,-96.09990576,0.00016608,2]
[388926549,1759510661680,-445.52085401,0.00016608,2]
[388926550,1759510665477,-162.89475721,0.00016608,2]
[388926551,1759510667977,-337.25405616,0.00016608,2]
[388926552,1759510672509,166.47344729,0.00016508,2]
[388926553,1759510673508,-462.34495586,0.00016608,2]
[388926555,1759510675597,-240.89777635,0.00016608,2]
[388926556,1759510678964,-223.34865607,0.00016608,2]
[388926558,1759510734745,728.53,8.795e-05,2]
[388926559,1759510734963,728.53,9.258e-05,2]
[388926560,1759510735213,728.53,9.721e-05,2]
[388926561,1759510735421,728.53,0.00010183,2]
[388926562,1759510735660,728.53,0.00010646,2]
[388926563,1759510735873,728.53,0.00011109,2]
[388926564,1759510736086,728.53,0.00011572,2]
[388926565,1759510736318,728.53,0.00012035,2]
[388926566,1759510736553,728.53,0.00012498,2]
[388926567,1759510737302,728.53,0.00012961,2]
[388926568,1759510737380,728.53,0.00013424,2]
[388926569,1759510737455,728.53,0.00013886,2]
[388926570,1759510737957,728.53,0.00014349,2]
[388926571,1759510738026,728.53,0.00014812,2]
[388926572,1759510738265,728.53,0.00015275,2]
[388926573,1759510738418,728.53,0.00015738,2]
[388926574,1759510738681,728.53,0.00016201,2]
[388926575,1759510754191,268.0,0.0001612,2]
[388926582,1759510861955,-31.63903858,0.00016608,2]
[388926583,1759510861983,-238.782,0.00016608,2]
[388926584,1759510862008,-151.0,0.00016608,2]
[388926585,1759510862036,-172.1078348,0.00016608,2]
[388926586,1759510862064,-305.5565728,0.00016636,2]
[388926587,1759510862091,-198.95907078,0.00016636,2]
[388926595,1759510913943,-435.95548304,0.00016664,2]
[388926600,1759510940737,500.0,0.0001,10]
[388926614,1759511228882,500.99,0.000166,2]
[388926624,1759511350189,-292.57451696,0.00016664,2]
[388926625,1759511350213,-200.0,0.00016664,2]
[388926626,1759511350237,-246.0,0.00016722,2]
[388926627,1759511350259,-2000.0,0.00016779,2]
[388926628,1759511350280,-2096.49734704,0.00016895,2]
[388926639,1759511432089,-403.50265296,0.00016895,2]
[388926640,1759511432099,-728.53,0.00017127,2]